Cogmind - Beta 15 *** ADVENTURER MODE // 2025.09.02 @ 15:00:51 Player: Knightshade Result: Destroyed by YR-2GC(R) with Subdweller Laser Performance ------------- Evolutions (0) 0 Regions Visited (2) 400 Robots Destroyed (38) 190 Value Destroyed (851) 851 Prototype IDs (7) 140 Alien Tech Used (0) 0 Bonus (0) 0 TOTAL SCORE: 1581 Bonus ------- None Cogmind --------- Core Integrity 0/250 Matter 300/300 Energy 164/200 System Corruption 0% Temperature Cool (6) Movement Rolling (179) Ox7 Location -10/Subcaves Parts ------- > --- POWER (1) -------- Subdweller Power Source > --- PROPULSION (2) --- Wheel Subdweller Monowheel > --- UTILITY (2) ------ Humpback > --- WEAPON (2) ------- Subdweller Laser Subdweller Laser > --- INVENTORY (35) --- Ion Engine Subdweller Power Source Light Treads Light Treads Compact Wheel Compact Wheel Cargo Storage Unit Humpback Terrain Scanner Subdweller Laser Subdweller Beam Cannon Grenade Launcher Grenade Launcher Peak State ------------ > --- POWER ------------ Subdweller Power Source > --- PROPULSION ------- Wheel Subdweller Monowheel > --- UTILITY ---------- Humpback > --- WEAPON ----------- Subdweller Laser Subdweller Beam Cannon > --- INVENTORY -------- Ion Engine Subdweller Power Source Light Treads Light Treads Compact Wheel Compact Wheel Cargo Storage Unit Humpback Terrain Scanner Subdweller Laser Grenade Launcher Grenade Launcher [Rating: 12] Favorites ----------- Power Ion Engine Engine Ion Engine Propulsion Light Treads Treads Light Treads Wheel Wheel Utility Seismic Detector Device Seismic Detector Storage Huge Storage Unit Weapon Assault Rifle Energy Gun EM Pulse Gun Energy Cannon Subdweller Beam Cannon Ballistic Gun Assault Rifle Launcher Grenade Launcher Build | -11 -10 -10 ------- Run | Yrd Mat Sub Slots Evolved . | . . . Power . | . . . Propulsion . | . . . Utility . | . . . Weapon . | . . . Parts Attached 23 | 9 6 8 Power 2 | 1 . 1 Engine 2 | 1 . 1 Core . | . . . Reactor . | . . . Propulsion 6 | 4 . 2 Treads 2 | 2 . . Leg . | . . . Wheel 4 | 2 . 2 Hover . | . . . Flight . | . . . Utility 5 | 2 2 1 Device 1 | 1 . . Storage 4 | 1 2 1 Processor . | . . . Hackware . | . . . Protection . | . . . Artifact . | . . . Weapon 10 | 2 4 4 Energy Gun 4 | 1 1 2 Energy Cannon 1 | . . 1 Ballistic Gun 2 | 1 1 . Ballistic Cannon . | . . . Launcher 3 | . 2 1 Special Weapon . | . . . Impact Weapon . | . . . Slashing Weapon . | . . . Piercing Weapon . | . . . Special Melee Weapon . | . . . Unidentified Prototypes . | . . . Parts Lost 3 | . 2 1 Power . | . . . Propulsion . | . . . Utility . | . . . Weapon 3 | . 2 1 Highest Loss Streak 1 | . 1 1 To Critical Strikes . | . . . Average Backups 9 | 1 9 9 Power . | . . . Propulsion 2 | . 2 3 Utility 3 | . 3 3 Weapon 2 | . 2 2 Tool/Special . | . . . Unused Backups 11 | 1 . 10 Power 1 | . . 1 Propulsion 4 | 1 . 3 Utility 5 | . . 5 Weapon 1 | . . 1 Tool/Special . | . . . Average Slot Usage (%) 91 | . 94 84 Engine 14 | . 14 14 Treads 21 | . 28 5 Wheel 6 | . . 22 Device 6 | . 9 . Storage 14 | . 14 14 Energy Gun 10 | . 12 6 Energy Cannon 1 | . . 5 Ballistic Gun 11 | . 12 10 Launcher 4 | . 3 5 Peak Build Rating 12 | 7 8 12 Average Rating 7 | 5 7 8 On Entrance 5 | . 7 8 Naked Turns . | . . . Heaviest Build 217 | 15 149 217 Greatest Support 40 | 40 40 40 Greatest Overweight (x) 8 | . 3 8 Average Overweight (x) 3 | . 1 7 Largest Inventory Capacity 35 | 8 30 35 Average Capacity 26 | 7 25 33 Most Carried 17 | 3 15 17 Average Carried 9 | 1 9 11 Final Capacity 35 | 8 30 35 Final Carried 15 | 3 15 15 Class Distribution -------------------- 52% | Mutant 47% | Hauler-Mutant Dominant Class ---------------- Mutant | -10/Materials Hauler-Mutant | -10/Subcaves Resources | -11 -10 -10 ----------- Run | Yrd Mat Sub Matter Collected 758 | 293 204 261 Remotely . | . . . Salvage Created 1325 | 132 729 464 Parts 73 | 7 44 22 Haulers Intercepted 2 | . 2 . Recyclers Shooed 1 | . 1 . Parts Field Recycled . | . . . Retrieved Matter . | . . . Parts Self-Destructed 11 | . . 11 Prevented . | . . . Kills | -11 -10 -10 ------- Run | Yrd Mat Sub Combat Hostiles Destroyed 25 | . 13 12 Guns 10 | . 8 2 Cannons 4 | . . 4 AOE 9 | . 4 5 Classes Destroyed 11 | 2 6 3 Worker 1 | . 1 . Builder 2 | . 2 . Tunneler 3 | 3 . . Hauler 2 | . 2 . Recycler 2 | 1 1 . Watcher 3 | . 3 . Swarmer 9 | . 6 3 Grunt 9 | . 7 2 Artisan 1 | . . 1 Cobbler 1 | . . 1 Subdweller 7 | . . 7 Best Kill Streak 7 | 3 7 3 Combat Bots Only 4 | . 4 3 Max Kills in Single Turn 4 | 1 4 3 Gunslinging . | . . . Exploded 4 | . 4 3 Melee . | . . . Uniques/NPCs Destroyed . | . . . Combat | -11 -10 -10 -------- Run | Yrd Mat Sub Hostile Shots Fired 96 | . 46 50 Missed 27 | . 8 19 Hits 69 | . 38 31 Projectile 69 | . 38 31 AOE 3 | . . 3 Critical Strikes 3 | . 1 2 Damage Taken 947 | . 363 584 Core 257 | . 83 174 Absorbed by Shields . | . . . Ignored by Resistances 272 | . 113 159 Core Remaining (%) 100 | 100 . . Volleys Fired 101 | 12 43 46 Largest 2 | 2 2 2 Hottest 140 | 60 80 140 Shots Fired 177 | 19 82 76 Gun 153 | 19 78 56 Cannon 15 | . . 15 Launcher 9 | . 4 5 Special . | . . . Kinetic 61 | 12 17 32 Thermal 39 | . . 39 Explosive 9 | . 4 5 Electromagnetic 68 | 7 61 . Robot Hit Streak 24 | 9 22 24 Robot Miss Streak 2 | 2 2 2 Penetration Max . | . . . Secondary Targets . | . . . Shots Hit Robots 135 | 13 63 59 Core Hits 58 | 5 32 21 Critical Kills 1 | . . 1 Critical Parts Destroyed 1 | . . 1 Critical Strikes 5 | . 3 2 Meltdown 1 | . . 1 Destroy 1 | . . 1 Corrupt 3 | . 3 . Melee Attacks . | . . . Impact . | . . . Slashing . | . . . Piercing . | . . . Sneak Attacks . | . . . Combat Hostiles . | . . . Follow-up Attacks . | . . . Damage Inflicted 2522 | 168 1130 1224 Guns 1642 | 168 865 609 Cannons 387 | . . 387 Explosions 493 | . 265 228 Melee . | . . . Ramming . | . . . Kinetic 583 | 87 150 346 Thermal 682 | . 32 650 Explosive 461 | . 233 228 Electromagnetic 796 | 81 715 . Impact . | . . . Slashing . | . . . Piercing . | . . . Highest Corruption . | . . . Average Corruption . | . . . Corruption Purged . | . . . Corruption Blocked . | . . . Overload Shots . | . . . Overflow Damage . | . . . Projectiles . | . . . Explosions . | . . . Melee . | . . . Knockbacks . | . . . Impact . | . . . Kinetic . | . . . Secondary . | . . . Self-Inflicted Damage 11 | . 11 . Shots 1 | . 1 . Rammed . | . . . Targets Rammed . | . . . Kicked . | . . . Crushed . | . . . Highest Temperature 222 | . 174 222 Average Temperature 46 | . 49 40 Received Heat Transfer 657 | . 243 414 Siege Activations . | . . . Martial Activations . | . . . Shielding Activations . | . . . Robots Disrupted . | . . . Combat Hostiles . | . . . Robots Corrupted 2 | . 2 . Combat Hostiles 1 | . 1 . Parts Fried 4 | . 4 . Impact Corruptions . | . . . Robots Melted 1 | . . 1 Combat Hostiles 1 | . . 1 Parts Melted 2 | . . 2 Heat Transferred 893 | . 50 843 Parts Sabotaged . | . . . Parts Stolen . | . . . Parts Stripped . | . . . Power Chain Reactions 1 | . 1 . Alert | -11 -10 -10 ------- Run | Yrd Mat Sub Maximum Alert Level 1 | . 1 . Low Security (%) 94 | 100 93 . Level 1 5 | . 6 . Level 2 . | . . . Level 3 . | . . . Level 4 . | . . . Level 5 . | . . . High Security . | . . . Max Security . | . . . Peak Influence 231 | 10 231 . Initial . | . . . Average 39 | 1 42 . Influence Increases 618 | 20 478 120 Destroy 0b10 Robot/C 360 | . 260 100 Destroy 0b10 Robot/NC 65 | 20 45 . Destroy Leader 70 | . 50 20 Successful Hack 21 | . 21 . Disable Machine 36 | . 36 . Destroy Structure 21 | . 21 . Partial Spotted 15 | . 15 . Lose Combat Pursuer 30 | . 30 . Influence Decreases 618 | 20 478 120 Time Decay 608 | 20 468 120 Lost Part 10 | . 10 . Squads Dispatched . | . . . Investigation . | . . . Extermination . | . . . Reinforcement . | . . . Assault . | . . . Garrison . | . . . Intercept . | . . . Searches Triggered . | . . . Construction Impeded . | . . . Haulers Reinforced . | . . . Active Scanning Responses . | . . . Cargo Convoy Interrupts . | . . . Stealth | -11 -10 -10 --------- Run | Yrd Mat Sub Distress Signals 1 | . 1 . Communications Jammed . | . . . Distress Signals . | . . . Times Spotted 32 | . 19 13 Peak Tracking Total 6 | . 6 3 Tactical Retreats 2 | . 2 . Traps | -11 -10 -10 ------- Run | Yrd Mat Sub Traps Triggered . | . . . Indirectly . | . . . Trap Hack Attempts . | . . . Triggered . | . . . Disarmed 4 | . 4 . Reprogrammed . | . . . Reused . | . . . Traps Extracted . | . . . Installed . | . . . Triggered . | . . . Machines | -11 -10 -10 ---------- Run | Yrd Mat Sub Machines Disabled 4 | . 4 . Max in Single Turn 2 | . 2 . Machines Repaired . | . . . Machines Dismantled . | . . . Machines Sabotaged . | . . . Overloaded Fab Kills . | . . . Hacking | -11 -10 -10 --------- Run | Yrd Mat Sub Machines Accessed 8 | . 8 . Terminals 8 | . 8 . Fabricators . | . . . Repair Stations . | . . . Recycling Units . | . . . Scanalyzers . | . . . Garrison Access . | . . . Total Hacks 30 | . 30 . Successful 22 | . 22 . Failed 7 | . 7 . Catastrophic . | . . . Database Lockouts 1 | . 1 . Manual 26 | . 26 . Terminals 30 | . 30 . Fabricators . | . . . Repair Stations . | . . . Recycling Units . | . . . Scanalyzers . | . . . Garrison Access . | . . . Terminal Hacks 9 | . 9 . Part Schematic 1 | . 1 . Prototype ID Bank 5 | . 5 . Locate Traps 1 | . 1 . Disarm Traps 1 | . 1 . Zone Layout 1 | . 1 . Fabricator Hacks . | . . . Repair Station Hacks . | . . . Recycling Unit Hacks . | . . . Scanalyzer . | . . . Garrison Access Hacks . | . . . Unauthorized Hacks 13 | . 13 . Terminals 13 | . 13 . Track 1 | . 1 . Botnet 6 | . 6 . Skim 6 | . 6 . Fabricators . | . . . Repair Stations . | . . . Recycling Units . | . . . Scanalyzers . | . . . Garrison Access . | . . . Data Cores Recovered . | . . . Used . | . . . Hacking Detections 6 | . 6 . Full Trace Events . | . . . Feedback Events . | . . . Feedback Blocked . | . . . Robot Schematics Acquired . | . . . Robots Built . | . . . Authchips . | . . . Time . | . . . Total Robot Build Rating . | . . . Part Schematics Acquired 1 | . 1 . Parts Built . | . . . Authchips . | . . . Time . | . . . Total Part Build Rating . | . . . Parts Repaired . | . . . Time . | . . . Parts Recycled . | . . . Recycled Matter . | . . . Retrieved Matter . | . . . Retrieved Components . | . . . Parts Scanalyzed . | . . . Part Schematics Acquired . | . . . Parts Damaged . | . . . Bothacking | -11 -10 -10 ------------ Run | Yrd Mat Sub Used RIF Installer . | . . . Robots Hacked . | . . . Non-combat . | . . . Combat . | . . . Robot Hacks Applied . | . . . Relay Couplers Released . | . . . Fabnet Peak Effective % . | . . . Robots Rewired . | . . . Allies Hacked . | . . . Hacks Repelled . | . . . Allies | -11 -10 -10 -------- Run | Yrd Mat Sub Total Allies . | . . . Largest Group . | . . . Highest-Rated Group . | . . . Highest-Rated Ally . | . . . Total Orders . | . . . Ally Attacks . | . . . Total Damage . | . . . Kills . | . . . Allies Corrupted . | . . . Allies Melted . | . . . Intel | -11 -10 -10 ------- Run | Yrd Mat Sub Active Infowar (turns) 1653 | 3 1650 . Seismic 1653 | 3 1650 . Robot Analysis Total . | . . . Derelict Logs Recovered 1 | . . 1 Drone Launches . | . . . Drone Recoveries . | . . . Exploration | -11 -10 -10 ------------- Run | Yrd Mat Sub Turns Passed 3667 | 146 2507 1014 Spaces Moved 1158 | 67 720 371 Core 1 | 1 . . Treads 815 | 55 720 40 Legs . | . . . Wheels 342 | 11 . 331 Hover . | . . . Flight . | . . . Fastest Speed 50 | 50 160 160 Average Speed 278 | 146 319 224 Slowest Speed 400 | 160 400 400 Overloaded Moves . | . . . Propulsion Burnouts . | . . . Robots Hopped . | . . . Potential Cave-ins . | . . . Cave-ins Triggered . | . . . Exploration Rate (%) 43 | 6 96 28 Regions Visited 2 Branch Regions 1 Pre-discovered Areas 2 | . . 2 Known Exits Taken . | . . . Unknown Exits Taken 2 | 1 1 . Scrap Searched . | . . . Spaces Dug . | . . . Terrain Destroyed 29 | . 18 11 Melee . | . . . Projectile . | . . . AOE 29 | . 18 11 Terrain Rammed . | . . . Walls Destroyed . | . . . Machines Disabled . | . . . Actions | -11 -10 -10 --------- Run | Yrd Mat Sub Total 1416 | 92 849 475 Wait 92 | . 55 37 Move 1156 | 66 719 371 Hop . | . . . Pick Up 31 | 4 20 7 Fast Attach 9 | 7 . 2 Attach 4 | . 3 1 Detach 2 | . 1 1 Swap 17 | 2 6 9 Drop 4 | 1 2 1 Fire 101 | 12 43 46 Melee . | . . . Ram . | . . . Kick . | . . . Crush . | . . . Escape Stasis . | . . . Rewire . | . . . Trap . | . . . Miscellaneous . | . . . Route ------- -11/Scrapyard -10/Materials (discovered 6 exits: *Mat x3 / [*Min x2] / [*Sub]) -10/Subcaves (discovered 1 exit: [*Mat]) History --------- Turn | Location | Event 17 | -11/Scrapyard | Discovered new exit (range 15) 147 | -11/Scrapyard | Entered Materials 308 | -10/Materials | Build established: Mutant 601 | -10/Materials | Discovered new exit (range 15) 688 | -10/Materials | Discovered new exit (range 9) 761 | -10/Materials | Discovered new exit (range 15) 990 | -10/Materials | Discovered new exit (range 11) 1234 | -10/Materials | Discovered new exit (range 16) 1398 | -10/Materials | Identified exit to Materials 1398 | -10/Materials | Learned location of 1 exit from Materials 1471 | -10/Materials | Learned 2 Storage zone layouts 1534 | -10/Materials | Learned location of 1 exit from Storage 1748 | -10/Materials | Learned location of 1 exit from Storage 2221 | -10/Materials | Build established: Hauler-Mutant 2390 | -10/Materials | Central database locked down 2654 | -10/Materials | Entered Subcaves 2655 | -10/Subcaves | Approached by a straggling Scientist 2698 | -10/Subcaves | Learned location of Zion (-7) 2769 | -10/Subcaves | Core integrity fell below 50% 3093 | -10/Subcaves | A swath of the cavern ceiling suddenly collapsed 3216 | -10/Subcaves | Ambushed by angry Subdweller bent on revenge 3233 | -10/Subcaves | Shifting Twisted Machinery released Sub. Shrapnel Launcher 3488 | -10/Subcaves | Core integrity fell below 20% 3576 | -10/Subcaves | Discovered new exit (range 5) 3624 | -10/Subcaves | Met a Zionite searching for "candidates" 3668 | -10/Subcaves | Destroyed by YR-2GC(R) with Subdweller Laser Last Messages --------------- 03361_ Subatomizers dissect the Disposable Heat Sink. 03362_ Acquired 10 matter. 03376_ Subatomizers dissect the Disposable Heat Sink. 03517_ BS-JZN(R) destroyed. 03558_ Sub. Optics melted. 03558_ 4D-ZLY(R) destroyed. 03564_ Acquired Sub. Laser. 03565_ Acquired 10 matter. 03576_ EXIT=FOUND 03582_ Sub. Beam Cannon shoots sparks and powers down. 03594_ XJ-UHD(z): "She is not going to be happy we haven't found any suitable candidates yet." 03624_ XJ-UHD(z): "Hey you! It's really dangerous down here, I feel that you could die at any moment. For your health and safety might I suggest a trip to Zion?" World map confirmed: -7/Zion. 03626_ NJ-YPZ(z) suffers critical hit (Destroy). 03626_ NJ-YPZ(z) destroyed. 03644_ I9-W6W(R) destroyed. 03659_ Acquired 10 matter. Map ----- +----------------------------------------------------+ | ?????????????????????????????????????????????????? | | ?????????????????????????????????????????????????? | | ?????????????????????????????????????????????????? | | ?????????????????????????????????????????????????? | | ?????????????????????????????????????????????????? | | ?????????????????????????????????????????????????? | | ?????????????????????????????????????????????????? | | ?????????????????????????????????????????????????? | | ?????????????????????????????????????????????????? | | ?????????????????????????????????????????????????? | | ?????????????????????????????????????????????????? | | ?????????????????????????????????????????????????? | | ????????????????????????????####?????????????????? | | ???????????????????????????# ?????????????????? | | ??????????????????????????? ???? ????????????? | | ??????????????????????????? ??? ????????????? | | ???????????????????##?????# ??? ?????????????? | | ???????????????????# ???? ?? ??????????????? | | ???????????????????# ???? #?#R ???????????????? | | ???????????????????# ?### ## ????????????????? | | ???????????????????# ## ?????????????????? | | ???????????????????# ??????????????????? | | ????????????????????# #???????????????????? | | ????????????????????# && #????????????????????? | | ###?????????????????# [%&###??????????????????? | | # ##?????????????????# @*! ##?????????????????? | | #?????????????????# "#?????????????????? | | # #?????????????????### """#?????????????????? | | # #?????????????????# * " ##?????????????????? | | #?????????????????# % # "##??????????????????? | | #?????????????????# ####???????????????????? | | #?????????????????# ##??????????????????????? | | ###?????????????????## #??????????????????????? | | #????????????????????# ##??????????????????????? | | ###????????????????### #??????????????????????? | | ##???????????????# #??????????????????????? | | #????####???????# ##??????????????????????? | | #?#### #???????# ##???????????????????????? | | ##?# #??????## ##????????????????????????? | | ##???# #??????# ##?????????????????????????? | | &#####?# ######## #??????????????????????????? | | %# ###!"""" "# ##??????????????????????????? | | ! &%""" "## #####???????????????????????? | | &""" "## ## ##??????????????????????? | | # "" "" "" ##?????????????????????? | | ######## ## "" """ #?????????????????????? | | ???????##### "" """" ## #????????????????????? | | ???????????## " """## ###?# #????????????????????? | | ????????????## "##### #???? #????????????????????? | | ?????????????# # #?????#????????????????????? | +----------------------------------------------------+ Best States ------------- Heat Dissipation 25 Energy Generation 15 Energy Capacity 250 Matter Stores 300 Matter Capacity 300 Sight Range 16 Terrain Scan Density 10 Resistance: KI 20 Resistance: TH 20 Resistance: EX 20 Resistance: EM 20 Resistance: I 20 Resistance: S 20 Resistance: P 20 Evasion (%) 42 Recoil Reduction 2 Offensive Hacking 10 Item Schematics ----------------- Cargo Storage Unit | -10/Materials | Hacked Robot Schematics ------------------ None Fabricated ------------ Nothing Repaired ---------- Nothing Alien Tech Used ----------------- None Achievements -------------- None Challenges ------------ None Game ------ Seed SpectralSpreadSplitter Manual? 0 Play Time 00:17:15 Cumulative 118.3 hours Start 2025.09.01 @ 23:05:00 End 2025.09.02 @ 15:00:51 Sessions 1 Manual Loads 0 Difficulty Adventurer Special Mode None Game No. 83 Rogue 0 Adventurer 83 Explorer 0 Win Type - Total 0 Types 0/0/0/0/0/0/0/0/0/0 Lore% 27 Gallery% 44 Achievement% 38 Wizard Run 0 Options --------- Layout 0 ASCII 0 Keyboard 0 Movement Mouse Keybinds 0 Fullscreen 1 Font 18/SmallcapsGlow Map View 76x50 Zoom Use 0% Tactical HUD 1 Map Filters NONE Filters NONE Steam 1 RUN: 7f82d9ea-d332-4f75-aa3c-b5a6c3897b9b